[Event "Czech Championship U20 Open 2023"]
[Site "Jaromerice nad Rokytnou"]
[Date "2023.03.15"]
[Round "8.3"]
[White "Jares, Michal"]
[Black "Mica, Marek"]
[Result "1/2-1/2"]
[ECO "A05"]
[WhiteElo "2177"]
[BlackElo "2248"]
[Annotator "TA"]
[PlyCount "157"]
[EventDate "2023.03.10"]
[EventType "tourn"]
[EventCountry "CZE"]
[SourceTitle "playchess.com"]
[Source "ChessBase"]
[SourceQuality "1"]
[TimeControl "40/5400+30:1800+30"]

{[%evp 15,157,0,12,0,5,11,32,0,31,20,24,27,39,11,24,12,27,27,41,23,15,18,22,19,19,6,13,9,0,8,18,3,30,30,40,29,44,21,19,6,49,7,6,0,0,0,0,0,26,10,18,10,24,0,47,21,30,8,11,11,12,0,0,0,3,1,16,0,0,0,0,0,0,0,0,0,0,0,18,0,0,0,19,0,0,0,0,0,42,0,0,0,42,42,119,42,42,0,0,0,0,0,0,0,0,0,0,0,0,0,0,0,0,0,0,0,0,0,0,0,0,0,0,0,0,0,0,0,0,0,0,0,0,0,0,0,0,0,0,0,0,0,0,0]} 1. Nf3 {[%emt 0:00:04]} Nf6 {[%emt 0:00:10]} 2. g3 {[%emt 0:00:08]} b6 {[%emt 0:00:09]} 3. Bg2 {[%emt 0:00:12]} Bb7 {[%emt 0:00:16]} 4. O-O {[%emt 0:00:09]} g6 {[%emt 0:00:09]} 5. c4 {[%emt 0:00:34]} Bg7 {[%emt 0:00:08]} 6. Nc3 {[%emt 0:01:06]} O-O {[%emt 0:00:16]} 7. d4 {[%emt 0:01:38]} Ne4 {[%emt 0:00:11]} 8. Nxe4 {[%emt 0:12:40]} Bxe4 {[%emt 0:00:16]} 9. Bf4 {[%emt 0:00:49] A50: Queen's Fianchetto Defence (1 d4 Nf6 2 c4 b6).} d6 {[%emt 0:02:42]} 10. Qd2 {[%emt 0:02:25]} Re8 {[%emt 0:09:37]} 11. Bh6 {[%emt 0:02:35] White is slightly better.} Bf6 {[%emt 0:01:29] [#]} 12. Rfd1 $146 {[%emt 0:06:02]} ({Predecessor:} 12. Rad1 Nd7 13. h4 c5 14. Qf4 Bb7 15. d5 b5 16. b3 Qa5 17. Rd2 bxc4 18. bxc4 {0-1 Kanmazalp,O (2447)-Andreikin,D (2723) EU-ch 18th Minsk 2017 (2)}) 12... Nd7 {[%emt 0:02:22]} 13. Rac1 {[%emt 0:00:40]} c5 {[%emt 0:01:07]} 14. h4 {[%emt 0:09:00]} Rb8 {[%emt 0:01:17]} 15. Be3 {[%emt 0:03:39]} h5 {[%emt 0:02:35]} 16. b3 {[%emt 0:01:13]} Qc7 {[%emt 0:01:24]} 17. Ng5 {[%emt 0:06:24]} (17. Bh3 $5 {[%cal Rh3d7]}) 17... Bxg2 {[%emt 0:01:01]} 18. Kxg2 {[%emt 0:00:02]} Bg7 {[%emt 0:01:41]} 19. Qd3 {[%emt 0:05:34]} Nf6 {[%emt 0:03:44]} 20. Bd2 {[%emt 0:04:35]} Qb7+ {[%emt 0:08:02]} 21. Kg1 {[%emt 0:01:20]} cxd4 {[%emt 0:10:07]} 22. Qxd4 {[%emt 0:00:02]} Nh7 {[%emt 0:01:49]} 23. Qd5 {[%emt 0:02:24]} Nxg5 {[%emt 0:02:28]} (23... Qxd5 {simplifies} 24. cxd5 Nf6 25. e4 Rbc8) 24. Bxg5 {[%emt 0:00:04]} Rec8 {[%emt 0:01:53]} 25. e4 {[%emt 0:04:28]} Rc7 {[%emt 0:04:21]} 26. Kg2 {[%emt 0:01:43]} (26. a4 {is interesting.} Qc8 27. Kg2 Bb2 28. Rc2) 26... Qxd5 {[%emt 0:04:03]} 27. exd5 {[%emt 0:04:50]} Kh7 {[%emt 0:01:27]} (27... Bb2 $5 {[%cal Rb2c1]}) 28. Rc2 {[%emt 0:04:12]} Bh6 {[%emt 0:01:15]} 29. Rdc1 {[%emt 0:02:48]} Rbc8 {[%emt 0:01:18]} 30. Re1 {[%emt 0:12:12]} Bxg5 {[%emt 0:01:45]} 31. hxg5 $11 {[%emt 0:00:02][%mdl 4096] Endgame KRR-KRR} Kg7 {[%emt 0:00:29]} 32. Rce2 {[%emt 0:00:46]} Kf8 {[%emt 0:00:09]} 33. Re4 {[%emt 0:04:01]} Rb8 {[%emt 0:04:13]} 34. g4 {[%emt 0:03:36]} hxg4 {[%emt 0:00:46]} (34... b5 $11 {feels stronger.}) 35. Rh1 {[%emt 0:00:13]} Kg7 {[%emt 0:00:37] Prevents Rh8.} 36. Rxg4 {[%emt 0:01:25]} Rh8 {[%emt 0:01:01]} 37. Rxh8 {[%emt 0:00:47]} Kxh8 {[%emt 0:00:06] KR-KR} 38. Kf3 {[%emt 0:00:53]} Kg7 {[%emt 0:00:43]} 39. Ke3 {[%emt 0:00:48]} Rc8 {[%emt 0:06:22]} 40. Re4 {[%emt 0:02:43]} Re8 {[%emt 0:00:47]} 41. Kd3 {[%emt 0:08:29]} f6 {[%emt 0:01:37]} 42. gxf6+ {[%emt 0:00:44]} Kxf6 {[%emt 0:00:08]} 43. Rh4 {[%emt 0:02:25]} Kg7 {[%emt 0:00:50]} 44. Ke3 {[%emt 0:09:20]} Rf8 {[%emt 0:01:42]} 45. Re4 {[%emt 0:00:40]} Rf7 {[%emt 0:01:43]} 46. Re6 {[%emt 0:00:43]} Kh7 {[%emt 0:00:52]} 47. a3 {[%emt 0:01:38]} a5 {[%emt 0:01:06]} 48. f3 {[%emt 0:03:45]} Kg7 {[%emt 0:00:13]} 49. Kf2 {[%emt 0:00:44]} Kh7 {[%emt 0:00:34]} 50. Kg3 {[%emt 0:00:02]} Kg7 {[%emt 0:00:13]} 51. Kg4 {[%emt 0:00:12]} Kh7 {[%emt 0:00:29]} 52. f4 {[%emt 0:04:15]} Kg7 {[%emt 0:00:13]} 53. b4 {[%emt 0:02:09]} axb4 {[%emt 0:01:22]} 54. axb4 {[%emt 0:00:02]} Kh6 {[%emt 0:02:08] [#]} ({Better is} 54... Kh7 $14) 55. Re3 {[%emt 0:01:08]} (55. Kf3 $1 $16) 55... Kg7 $14 {[%emt 0:03:12]} 56. Ra3 {[%emt 0:01:02] And now Ra6 would win.} Rf8 {[%emt 0:00:56] The position is equal.} 57. Ra7 {[%emt 0:01:27]} Kf6 {[%emt 0:00:24] aiming for ...Rc8.} 58. Rc7 {[%emt 0:00:53] Repels Rc8} b5 {[%emt 0:02:37]} 59. c5 {[%emt 0:00:02]} dxc5 {[%emt 0:00:08]} 60. Rc6+ {[%emt 0:01:19]} Kf7 {[%emt 0:00:12]} 61. Rxc5 {[%emt 0:00:16]} Rb8 {[%emt 0:00:40]} 62. Kg5 {[%emt 0:00:47]} Rb7 {[%emt 0:00:26]} 63. f5 {[%emt 0:00:37]} gxf5 {[%emt 0:00:20]} 64. Kxf5 {[%emt 0:00:01]} Ke8 {[%emt 0:01:22]} 65. Ke5 {[%emt 0:00:22]} Kd7 {[%emt 0:00:40]} 66. Rc6 {[%emt 0:00:03]} Rc7 {[%emt 0:02:53]} 67. Rb6 {[%emt 0:00:34]} Rc1 {[%emt 0:00:24]} 68. Rb7+ {[%emt 0:00:12]} Kd8 {[%emt 0:01:07]} 69. Rxb5 {[%emt 0:00:03]} Re1+ {[%emt 0:00:34]} 70. Kd4 {[%emt 0:00:01]} Kc7 {[%emt 0:00:29]} 71. Rc5+ {[%emt 0:02:18]} Kb6 {[%emt 0:00:38]} 72. Rc8 {[%emt 0:00:39]} Rd1+ {[%emt 0:00:57]} 73. Ke5 {[%emt 0:00:12]} Re1+ {[%emt 0:00:12]} 74. Kf5 {[%emt 0:01:02]} Kb5 {[%emt 0:00:11]} 75. Kg6 {[%emt 0:00:33]} Kxb4 {[%emt 0:00:18]} 76. Kf5 {[%emt 0:00:31]} Kb5 {[%emt 0:00:36]} 77. Rc6 {[%emt 0:00:18]} Kb4 {[%emt 0:00:40]} 78. Kg6 {[%emt 0:00:40]} Re5 {[%emt 0:00:30]} 79. Kf7 {[%emt 0:00:26] Weighted Error Value: White=0.12 (very precise) /Black=0.09 (flawless)} 1/2-1/2

[Event "Czech Championship U20 Open 2023"]
[Site "Jaromerice nad Rokytnou"]
[Date "2023.03.15"]
[Round "8.4"]
[White "Mach, Petr"]
[Black "Frank, Adam"]
[Result "1/2-1/2"]
[ECO "A39"]
[WhiteElo "2167"]
[BlackElo "2391"]
[Annotator "TA"]
[PlyCount "64"]
[EventDate "2023.03.10"]
[EventType "tourn"]
[EventCountry "CZE"]
[SourceTitle "playchess.com"]
[Source "ChessBase"]
[SourceQuality "1"]
[TimeControl "40/5400+30:1800+30"]

{[%evp 18,64,28,-7,42,-9,-12,-11,-19,-5,0,-6,-6,-22,-12,-53,-4,-26,-24,-39,-24,-47,0,0,0,0,107,106,104,90,89,-47,0,0,0,0,0,0,0,0,0,0,45,45,45,45,45,45,45]} 1. Nf3 {[%emt 0:00:03]} Nf6 {[%emt 0:00:11]} 2. g3 {[%emt 0:00:03]} g6 {[%emt 0:00:04]} 3. Bg2 {[%emt 0:00:03]} Bg7 {[%emt 0:00:04]} 4. O-O {[%emt 0:00:05]} c5 {[%emt 0:00:10]} 5. c4 {[%emt 0:00:20]} O-O {[%emt 0:00:06]} 6. Nc3 {[%emt 0:00:20]} Nc6 {[%emt 0:00:10]} 7. d4 {[%emt 0:00:24]} cxd4 {[%emt 0:01:13]} 8. Nxd4 {[%emt 0:00:07]} Nxd4 {[%emt 0:00:04] 8...Qa5 is the hot move.} 9. Qxd4 {[%emt 0:00:06]} d6 {[%emt 0:00:03]} 10. Rd1 {[%emt 0:12:39]} Bf5 {[%emt 0:10:46] A39: Symmetrical English vs ...g6: 4 Bg2 Bg7 5 Nf3 Nf6 6 0-0 0-0 7 d4.} (10... Be6 $11) 11. Bxb7 {[%emt 0:06:44] [#]} (11. Qf4 $14) 11... Ne4 $1 $11 {[%emt 0:00:05][%mdl 64] Deflection} 12. Qe3 {[%emt 0:00:33]} Nxc3 {[%emt 0:00:05] The position is equal.} 13. bxc3 {[%emt 0:00:25]} Rb8 {[%emt 0:00:04] [#]} 14. Bd5 $146 {[%emt 0:10:10]} ({Predecessor:} 14. Be4 Bxe4 15. Qxe4 Bxc3 16. Rb1 Rxb1 17. Qxb1 Qc7 18. Qb3 Be5 19. Be3 Rb8 20. Qa4 Kg7 21. Kf1 a5 22. Bd2 Rb2 23. a3 Qc8 24. Qxa5 Qxc4 25. Rc1 {1-0 Cabral,R (1914)-Pakselev,S FRA AJEC 70 jub op Gr-36 email 2007}) 14... Qc7 {[%emt 0:03:12]} 15. Ba3 {[%emt 0:01:59]} Rfc8 {[%emt 0:05:00][%mdl 1024] Black has compensation.} 16. Rac1 {[%emt 0:00:40]} Bf6 {[%emt 0:02:29]} (16... Rb6 $15) 17. Rd2 {[%emt 0:01:51]} Kg7 {[%emt 0:00:33]} 18. Bb4 {[%emt 0:00:41]} h5 {[%emt 0:01:26]} 19. h4 {[%emt 0:00:14]} a5 {[%emt 0:18:58]} (19... e6 $15 20. Bg2 d5) 20. Ba3 {[%emt 0:00:05]} Qd7 {[%emt 0:03:55]} 21. c5 {[%emt 0:00:27][%cal Bc4c5,Bc5c6][%mdl 32]} e6 {[%emt 0:00:04]} (21... dxc5 $1 $11 22. Bg2 (22. Bxc5 Rxc5 23. Qxc5 e6 $17) 22... Qe6) 22. c6 $16 {[%emt 0:08:08]} Qd8 {[%emt 0:11:39]} 23. Bf3 {[%emt 0:07:49]} d5 {[%emt 0:00:11] [#]} 24. Qc5 {[%emt 0:00:27] White is more active.} (24. Bc5 $1 $16) 24... Qb6 {[%emt 0:03:30]} (24... Qe8 $15 {might be stronger.}) 25. c4 $11 {[%emt 0:02:22] aiming for Qxb6.} Rxc6 {[%emt 0:10:06]} 26. Qxb6 {[%emt 0:00:07]} Rbxb6 {[%emt 0:00:04]} 27. cxd5 {[%emt 0:00:07]} Rxc1+ {[%emt 0:00:05]} 28. Bxc1 {[%emt 0:00:04]} Rb1 {[%emt 0:00:51]} 29. Rd1 {[%emt 0:00:06] Strongly threatening e4.} exd5 {[%emt 0:01:30]} (29... Bc2 $5 {[%cal Rc2d1]} 30. Re1 Ra1 $11) 30. Bxd5 {[%emt 0:01:09] Threatens to win with e4. White is slightly better.} Ra1 {[%emt 0:00:06]} 31. Bb3 {[%emt 0:07:07]} Be6 {[%emt 0:00:11]} 32. Bd2 {[%emt 0:01:36] Prevents Bc3. Hoping for Rxa1.} a4 {[%emt 0:02:16] Weighted Error Value: White=0.20 (precise) /Black=0.18 (very precise)} 1/2-1/2

[Event "Czech Championship U20 Open 2023"]
[Site "Jaromerice nad Rokytnou"]
[Date "2023.03.15"]
[Round "8.5"]
[White "Ocelak, Jakub"]
[Black "Kubiczek, Michal"]
[Result "1/2-1/2"]
[ECO "A15"]
[WhiteElo "2190"]
[BlackElo "2087"]
[Annotator "TA"]
[PlyCount "70"]
[EventDate "2023.03.10"]
[EventType "tourn"]
[EventCountry "CZE"]
[SourceTitle "playchess.com"]
[Source "ChessBase"]
[SourceQuality "1"]
[TimeControl "40/5400+30:1800+30"]

{[%evp 19,70,0,49,53,68,67,52,0,149,137,150,137,134,63,68,29,25,0,0,0,0,-55,-63,-70,-84,-84,-84,-66,-73,-75,-69,-108,-101,-101,-118,-117,-109,-112,-87,-138,-134,-133,-43,-137,-111,-426,-129,-209,-200,-188,145,144,359]} 1. c4 {[%emt 0:00:20]} Nf6 {[%emt 0:01:56]} 2. g3 {[%emt 0:00:22]} e6 {[%emt 0:05:26]} 3. Bg2 {[%emt 0:00:09]} d5 {[%emt 0:00:06]} 4. Nf3 {[%emt 0:00:04]} Be7 {[%emt 0:01:41]} 5. d4 {[%emt 0:03:14]} O-O {[%emt 0:02:16]} 6. Nc3 {[%emt 0:00:24]} c6 {[%emt 0:04:20]} 7. Qd3 {[%emt 0:05:18]} b6 {[%emt 0:07:34]} 8. O-O {[%emt 0:11:14]} Ba6 {[%emt 0:02:23]} 9. b3 {[%emt 0:01:16][%cal Bb2b3,Bb3c4][%mdl 32]} Nbd7 {[%emt 0:08:58]} 10. e4 {[%emt 0:06:28][%cal Be2e4,Be4e5][%mdl 32]} Rc8 {[%emt 0:05:17]} (10... dxc4 $11 {is superior.} 11. bxc4 e5) 11. e5 $14 {[%emt 0:07:24] E07: Closed Catalan: Main Line (5 Nf3 0-0 6 0-0 Nbd7).} dxc4 {[%emt 0:03:30]} 12. bxc4 {[%emt 0:10:32]} Nd5 {[%emt 0:00:22] [#]} 13. Rd1 $146 {[%emt 0:02:31]} ({Better is} 13. a4 $1 $14) ({Predecessor:} 13. Ne4 Nb4 14. Qb3 c5 15. Rd1 cxd4 16. Rxd4 Nc6 17. Rd1 Qc7 18. Nd6 Rcd8 19. Bf4 {0-1 Kunin,V (2548)-Obolenskikh,D (2467) Moscow Aeroflot op-B 10th 2011 (4)}) 13... Qc7 {[%emt 0:15:47]} (13... c5 $11 {remains equal.}) 14. Ne4 $1 $16 {[%emt 0:08:40]} c5 {[%emt 0:04:44] [#]} 15. Qb3 $1 {[%emt 0:02:29]} (15. Neg5 g6 $14) 15... Nb4 {[%emt 0:02:55] [#]} 16. Nd6 {[%emt 0:05:32]} Rcd8 $1 $14 {[%emt 0:06:31]} (16... Bxd6 17. exd6 Qd8 18. Ne5 $16) 17. Ba3 {[%emt 0:09:51]} Nc6 {[%emt 0:05:41]} 18. Nb5 {[%emt 0:02:50]} (18. Qa4 $5 {[%cal Ra4a6]} Na5 19. Qc2 $14) 18... Qb8 {[%emt 0:01:36]} 19. Qa4 {[%emt 0:11:15]} Na5 {[%emt 0:06:50]} 20. Re1 {[%emt 0:01:17]} (20. Rab1 $11) 20... Bb7 $15 {[%emt 0:01:37]} 21. Rad1 {[%emt 0:01:06]} a6 {[%emt 0:00:29]} 22. Nd6 {[%emt 0:01:22]} Bc6 {[%emt 0:00:20]} 23. Qc2 {[%emt 0:00:35]} cxd4 {[%emt 0:03:31]} ({Resist} 23... Bxd6 24. exd6 cxd4 25. Rxd4 $16 (25. Nxd4 Bxg2 26. Kxg2 Rc8 $17)) 24. Rxd4 {[%emt 0:01:15] [#]} Nxe5 $1 {[%emt 0:04:04]} 25. Nxe5 {[%emt 0:01:45]} (25. Rxe5 Bxd6) 25... Bxg2 {[%emt 0:00:01]} 26. Kxg2 {[%emt 0:00:25] Threatens to win with Red1.} Bxd6 {[%emt 0:00:15]} 27. Rh4 {[%emt 0:00:50][%csl Gh4][%cal Rc2h7]} f5 {[%emt 0:02:17]} (27... Bxa3 $2 28. Qxh7#) 28. Bb2 {[%emt 0:00:13]} Be7 {[%emt 0:01:06]} 29. Rh3 {[%emt 0:00:51]} (29. Rd4 $142) 29... Bf6 $17 {[%emt 0:00:35]} 30. Qe2 {[%emt 0:00:33]} Qc7 {[%emt 0:00:51]} (30... Qb7+ $17 31. Kg1 Nc6 32. Nxc6 Qxc6 33. Bxf6 Rxf6) 31. Kg1 {[%emt 0:02:16]} (31. Qh5 $1 $15 g5 32. g4) 31... Nc6 {[%emt 0:02:04]} 32. Nd3 $2 {[%emt 0:01:33][%mdl 8192]} (32. Nxc6 $17 Qxc6 33. Bxf6 Rxf6 34. Rh4) 32... Rde8 $2 {[%emt 0:00:25]} (32... Bxb2 $19 33. Nxb2 (33. Qxe6+ $2 {perishes.} Rf7 $19) 33... Nd4) 33. Nf4 {[%emt 0:00:22]} (33. Bxf6 $17 gxf6 34. Rh4) 33... Bxb2 $19 {[%emt 0:00:50]} 34. Qxb2 {[%emt 0:00:32]} Rf6 $2 {[%emt 0:00:30]} ({Black should play} 34... Qd7 $19 {White must now prevent ...Nd4.} 35. Qc3 (35. Qxb6 $2 {loses.} Nd4 $19) 35... Qd6) 35. Nd5 $16 {[%emt 0:00:50] White is more active.} exd5 $2 {[%mdl 32768] Weighted Error Value: White=0.46/Black=0.57. An unexpected result.} (35... Qd8 $16 {was called for.} 36. Nxf6+ gxf6) 1/2-1/2

[Event "Czech Championship U20 Open 2023"]
[Site "Jaromerice nad Rokytnou"]
[Date "2023.03.15"]
[Round "8.6"]
[White "Hrbek, Stepan"]
[Black "Jun, Rudolf"]
[Result "0-1"]
[ECO "B24"]
[WhiteElo "2340"]
[BlackElo "2152"]
[Annotator "TA"]
[PlyCount "78"]
[EventDate "2023.03.10"]
[EventType "tourn"]
[EventCountry "CZE"]
[SourceTitle "playchess.com"]
[Source "ChessBase"]
[SourceQuality "1"]
[TimeControl "40/5400+30:1800+30"]

{[%evp 11,78,31,31,29,60,50,57,43,39,45,52,51,56,47,50,7,56,56,61,57,82,77,92,77,73,59,140,150,140,50,53,56,133,69,89,47,89,89,75,82,93,97,167,171,149,168,324,321,328,322,381,363,345,85,90,76,550,564,583,491,870,846,830,845,791,796,734,701,613]} 1. e4 {[%emt 0:00:30]} c5 {[%emt 0:00:29]} 2. Nc3 {[%emt 0:00:14]} Nc6 {[%emt 0:00:44]} 3. Bb5 {[%emt 0:00:19]} g6 {[%emt 0:00:23]} 4. Bxc6 {[%emt 0:00:10]} dxc6 {[%emt 0:00:04]} 5. d3 {[%emt 0:00:27]} Bg7 {[%emt 0:00:52]} 6. Be3 {[%emt 0:00:42]} b6 {[%emt 0:06:07]} 7. f4 {[%emt 0:00:30] B23: Closed Sicilian: Lines without g3.} Nf6 {[%emt 0:01:30]} 8. Nf3 {[%emt 0:00:36]} O-O {[%emt 0:03:13] [#]} 9. Qe2 $146 {[%emt 0:01:54] White is slightly better.} ({Predecessor:} 9. Qd2 Qc7 10. h3 Rd8 11. Qe2 Nh5 12. Qd2 c4 13. d4 b5 14. g4 Nf6 15. e5 {½-½ Puranik,A (2584)-Leenhouts,K (2414) Titled Tuesday intern op 14th April blitz 2020 (4)}) 9... Nh5 {[%emt 0:11:09]} 10. O-O {[%emt 0:06:04]} Bg4 {[%emt 0:07:06][%cal Oe7e5]} 11. Qf2 {[%emt 0:04:25]} Bxf3 {[%emt 0:03:27]} 12. Qxf3 {[%emt 0:00:15] Threatens to win with e5.} Bd4 {[%emt 0:01:31]} 13. Ne2 {[%emt 0:07:05]} Bxe3+ {[%emt 0:06:38]} (13... Bxb2 $11 14. Rab1 Bd4) 14. Qxe3 $14 {[%emt 0:00:13]} e6 {[%emt 0:09:59]} 15. a4 {[%emt 0:14:38][%cal Ba2a4,Ba4a5][%mdl 32]} Qd6 {[%emt 0:08:14]} 16. e5 {[%emt 0:12:38]} Qd7 {[%emt 0:04:03]} 17. Nc3 {[%emt 0:05:30]} f5 {[%emt 0:04:56]} 18. a5 {[%emt 0:05:12]} Qd4 {[%emt 0:01:54]} (18... Ng7 $14) 19. Qxd4 $16 {[%emt 0:01:06]} cxd4 {[%emt 0:00:06]} 20. Na4 {[%emt 0:04:08]} (20. Ne2 $16) 20... Rab8 $14 {[%emt 0:00:48]} 21. Ra3 {[%emt 0:01:53]} Kf7 {[%emt 0:06:54]} ({Black should try} 21... Rfc8 $14) 22. g3 {[%emt 0:08:23]} (22. axb6 $16 axb6 23. Rb3) 22... g5 {[%emt 0:04:16]} 23. fxg5 {[%emt 0:01:24] And now axb6 would win.} Kg6 {[%emt 0:00:20]} 24. Rb3 {[%emt 0:00:35][%cal Ra5b6]} Kxg5 {[%emt 0:01:09]} 25. axb6 {[%emt 0:00:10]} axb6 {[%emt 0:00:05]} 26. Rxb6 {[%emt 0:01:00][%cal Oa4c5] Strongly threatening Nc5!} Rxb6 {[%emt 0:00:55]} (26... f4 $16) 27. Nxb6 $16 {[%emt 0:00:11][%mdl 4096] Endgame KRN-KRN} f4 {[%emt 0:01:39]} 28. Nc4 {[%emt 0:02:31]} Rf5 $2 {[%emt 0:04:33] [#]} (28... Ra8) 29. Nd6 $18 {[%emt 0:00:29]} Rf8 {[%emt 0:00:31]} 30. Kg2 {[%emt 0:02:37]} Rb8 {[%emt 0:00:54]} 31. b3 {[%emt 0:04:30]} Ra8 {[%emt 0:01:22]} 32. gxf4+ $2 {[%emt 0:02:20]} (32. Kh3 $18) 32... Nxf4+ $16 {[%emt 0:01:21]} 33. Kf3 {[%emt 0:00:36]} Rf8 $2 {[%emt 0:01:48][%mdl 8192] Loses the game.} (33... Nd5 $16) 34. Ke4 $18 {[%emt 0:01:28] White is clearly winning.} h5 {[%emt 0:02:40]} 35. Ne8 {[%emt 0:07:31][%mdl 64] [#] Deflection} (35. Kxd4 $2 {too greedy.} Ne2+ 36. Ke3 Rxf1 $19) 35... c5 {[%emt 0:04:48]} (35... Rxe8 $142 36. Rxf4 c5 37. h4+ Kh6 38. Rf6+ Kg7) 36. Nf6 {[%emt 0:00:14] aiming for Nh7+.} Ne2 {[%emt 0:00:55]} 37. Nh7+ {[%emt 0:02:21][%mdl 64] Discovered Attack, Double Attack} Kg4 {[%emt 0:00:05]} 38. Rg1+ {[%emt 0:00:16]} (38. Nxf8 $2 Nc3#) 38... Nxg1 {[%emt 0:00:32]} 39. Nxf8 {[%emt 0:00:04]} Ne2 {[%emt 0:00:37][%mdl 32768] Weighted Error Value: White=0.26 (precise) /Black=0.47. Loss on time!?} 0-1

[Event "Czech Championship U20 Open 2023"]
[Site "Jaromerice nad Rokytnou"]
[Date "2023.03.16"]
[Round "9.1"]
[White "Jun, Rudolf"]
[Black "Hlavina, Matous"]
[Result "1/2-1/2"]
[ECO "C01"]
[WhiteElo "2152"]
[BlackElo "2091"]
[Annotator "TA"]
[PlyCount "41"]
[EventDate "2023.03.10"]
[EventType "tourn"]
[EventCountry "CZE"]
[SourceTitle "playchess.com"]
[Source "ChessBase"]
[SourceQuality "1"]
[TimeControl "40/5400+30:1800+30"]

{[%evp 9,41,7,17,17,18,8,29,28,42,-7,-9,-5,0,0,0,-17,-12,-30,0,0,-3,-14,0,-1,0,0,0,-20,0,-4,0,-13,0,-7]} 1. e4 {[%emt 0:00:03]} e6 {[%emt 0:00:02]} 2. d4 {[%emt 0:00:36]} d5 {[%emt 0:00:05]} 3. exd5 {[%emt 0:00:19]} exd5 {[%emt 0:00:02]} 4. Nf3 {[%emt 0:00:09]} Nf6 {[%emt 0:00:10]} 5. h3 {[%emt 0:01:38]} Bf5 {[%emt 0:00:59]} 6. Bd3 {[%emt 0:00:57] C01: French: Exchange Variation.} Bxd3 {[%emt 0:04:13]} 7. Qxd3 {[%emt 0:00:11]} c6 {[%emt 0:01:16] Repels Qb5} 8. O-O {[%emt 0:00:42][%cal Bh1f1,Bf1e1,Be1e2][%mdl 32] White has an edge.} Be7 {[%emt 0:00:15]} 9. Nc3 {[%emt 0:02:35]} (9. Qb3 $14) 9... O-O $11 {[%emt 0:00:21]} 10. Re1 {[%emt 0:01:56]} Nbd7 {[%emt 0:01:08]} 11. Bf4 {[%emt 0:02:36]} Re8 {[%emt 0:02:28]} 12. Re2 {[%emt 0:08:17]} Bb4 {[%emt 0:02:56]} 13. Ne5 {[%emt 0:04:37] [#]} Nxe5 $146 {[%emt 0:02:35]} ({Predecessor:} 13... Nh5 14. Bh2 Bd6 15. Nxf7 Bxh2+ 16. Kxh2 Kxf7 17. Qf3+ Nhf6 18. Rae1 Qc7+ {0-1 Attuati,S (1455)-Saccani,E (1800) Crema op 12th 2010 (3)}) 14. Bxe5 {[%emt 0:01:46] The position is equal.} Nd7 {[%emt 0:02:23]} 15. Bg3 {[%emt 0:04:26]} Nf6 {[%emt 0:06:20]} 16. Be5 {[%emt 0:01:37]} Nd7 {[%emt 0:01:03]} 17. Bg3 {[%emt 0:01:19]} Nf6 {[%emt 0:00:10]} 18. Be5 {[%emt 0:01:23]} Nd7 {[%emt 0:00:09]} 19. Bg3 {[%emt 0:02:45]} Nf6 {[%emt 0:00:17]} 20. Be5 {[%emt 0:02:47]} Nd7 {[%emt 0:00:36]} 21. Bg3 {Weighted Error Value: White=0.05 (flawless) /Black=0.09 (flawless)} 1/2-1/2